[Event "Titled Tuesday Blitz November 29 Early 2022"]
[White "Zaichenko, Daria"]
[Black "Kovacevic, Radmila"]
[WhiteFideId "4197453"]
[BlackFideId "933171"]
[WhiteElo "2039"]
[BlackElo "2208"]
[Result "0-1"]
[Round "11"]
[TimeControl "180+1"]
[Date "2022.11.30"]
[WhiteClock "0:00:11"]
[BlackClock "0:00:43"]

1. e4 {[%clk 0:02:56]}  e5 {[%clk 0:02:59]} 2. Nf3 {[%clk 0:02:55]}  f5 {[%clk 0:02:59]} 3. d3 {[%clk 0:02:47]}  Nc6 {[%clk 0:02:57]} 4. exf5 {[%clk 0:02:41]}  Nf6 {[%clk 0:02:55]} 5. d4 {[%clk 0:02:38]}  e4 {[%clk 0:02:50]} 6. Ne5 {[%clk 0:02:38]}  d6 {[%clk 0:02:46]} 7. Nxc6 {[%clk 0:02:37]}  bxc6 {[%clk 0:02:47]} 8. Be2 {[%clk 0:02:33]}  Bxf5 {[%clk 0:02:47]} 9. c4 {[%clk 0:02:28]}  Be7 {[%clk 0:02:32]} 10. O-O {[%clk 0:02:27]}  O-O {[%clk 0:02:33]} 11. Nc3 {[%clk 0:02:26]}  Rb8 {[%clk 0:02:31]} 12. d5 {[%clk 0:02:24]}  c5 {[%clk 0:02:29]} 13. b3 {[%clk 0:02:20]}  Nd7 {[%clk 0:02:24]} 14. Bb2 {[%clk 0:02:18]}  Bf6 {[%clk 0:02:16]} 15. f4 {[%clk 0:02:10]}  exf3 {[%clk 0:02:15]} 16. Bxf3 {[%clk 0:02:09]}  Be5 {[%clk 0:02:08]} 17. Na4 {[%clk 0:01:55]}  Qh4 {[%clk 0:01:58]} 18. Bxe5 {[%clk 0:01:51]}  Nxe5 {[%clk 0:01:59]} 19. Qd2 {[%clk 0:01:43]}  Bd3 {[%clk 0:01:54]} 20. Rf2 {[%clk 0:01:41]}  Rf6 {[%clk 0:01:47]} 21. Re1 {[%clk 0:01:38]}  Rh6 {[%clk 0:01:41]} 22. g3 {[%clk 0:01:28]}  Qxh2+ {[%clk 0:01:33]} 23. Rxh2 {[%clk 0:01:23]}  Nxf3+ {[%clk 0:01:33]} 24. Kh1 {[%clk 0:01:14]}  Nxd2 {[%clk 0:01:31]} 25. Rxh6 {[%clk 0:01:14]}  gxh6 {[%clk 0:01:31]} 26. Nc3 {[%clk 0:01:11]}  Bg6 {[%clk 0:01:22]} 27. Kg2 {[%clk 0:01:02]}  Re8 {[%clk 0:01:20]} 28. Rf1 {[%clk 0:00:50]}  a6 {[%clk 0:01:17]} 29. Kh3 {[%clk 0:00:43]}  Ne4 {[%clk 0:01:15]} 30. Nxe4 {[%clk 0:00:40]}  Rxe4 {[%clk 0:01:16]} 31. Rf2 {[%clk 0:00:36]}  Kg7 {[%clk 0:01:13]} 32. g4 {[%clk 0:00:35]}  h5 {[%clk 0:01:09]} 33. gxh5 {[%clk 0:00:33]}  Bxh5 {[%clk 0:01:09]} 34. Kg3 {[%clk 0:00:32]}  Bg6 {[%clk 0:01:08]} 35. Kh3 {[%clk 0:00:31]}  h5 {[%clk 0:01:08]} 36. Kg3 {[%clk 0:00:31]}  Rd4 {[%clk 0:01:06]} 37. Kh3 {[%clk 0:00:30]}  h4 {[%clk 0:01:05]} 38. Re2 {[%clk 0:00:28]}  Re4 {[%clk 0:01:01]} 39. Rf2 {[%clk 0:00:19]}  Be8 {[%clk 0:00:54]} 40. Rf3 {[%clk 0:00:11]}  Bd7+ {[%clk 0:00:53]} 41. Kh2 {[%clk 0:00:11]}  Re2+ {[%clk 0:00:52]} 42. Kg1 {[%clk 0:00:11]}  h3 {[%clk 0:00:51]} 43. Rg3+ {[%clk 0:00:09]}  Kf6 {[%clk 0:00:49]} 44. Rg8 {[%clk 0:00:09]}  Rg2+ {[%clk 0:00:47]} 45. Rxg2 {[%clk 0:00:08]}  hxg2 {[%clk 0:00:48]} 46. Kxg2 {[%clk 0:00:08]}  Bf5 {[%clk 0:00:46]} 47. Kf3 {[%clk 0:00:08]}  Bb1 {[%clk 0:00:45]} 48. a3 {[%clk 0:00:08]}  Ba2 {[%clk 0:00:45]} 49. b4 {[%clk 0:00:09]}  Bxc4 {[%clk 0:00:43]} 50. bxc5 {[%clk 0:00:09]}  Bxd5+ {[%clk 0:00:44]} 51. Ke3 {[%clk 0:00:09]}  dxc5 {[%clk 0:00:44]} 52. Kd3 {[%clk 0:00:10]}  Ke5 {[%clk 0:00:44]} 53. Kc3 {[%clk 0:00:10]}  a5 {[%clk 0:00:44]} 54. a4 {[%clk 0:00:11]}  Ke4 {[%clk 0:00:43]} 0-1


[Site "https://www.chess.com"]

[Event "Titled Tuesday Blitz November 29 Early 2022"]
[White "Zemlyanskii, Ivan"]
[Black "Czopor, Maciej"]
[WhiteFideId "24249971"]
[BlackFideId "21805431"]
[WhiteElo "2107"]
[BlackElo "2324"]
[Result "1/2-1/2"]
[Round "11"]
[TimeControl "180+1"]
[Date "2022.11.30"]
[WhiteClock "0:00:07"]
[BlackClock "0:00:20"]

1. d4 {[%clk 0:03:00]}  Nf6 {[%clk 0:02:59]} 2. c4 {[%clk 0:03:00]}  g6 {[%clk 0:03:00]} 3. Nc3 {[%clk 0:02:58]}  Bg7 {[%clk 0:03:00]} 4. e4 {[%clk 0:02:58]}  O-O {[%clk 0:03:00]} 5. Nf3 {[%clk 0:02:58]}  d6 {[%clk 0:03:00]} 6. Be2 {[%clk 0:02:59]}  e5 {[%clk 0:02:58]} 7. O-O {[%clk 0:02:59]}  Nc6 {[%clk 0:02:59]} 8. d5 {[%clk 0:02:59]}  Ne7 {[%clk 0:02:59]} 9. Ne1 {[%clk 0:02:59]}  Nd7 {[%clk 0:03:00]} 10. Nd3 {[%clk 0:03:00]}  f5 {[%clk 0:03:00]} 11. f3 {[%clk 0:03:00]}  f4 {[%clk 0:03:01]} 12. b4 {[%clk 0:03:00]}  g5 {[%clk 0:03:01]} 13. c5 {[%clk 0:03:01]}  Nf6 {[%clk 0:03:01]} 14. a4 {[%clk 0:02:57]}  Ng6 {[%clk 0:03:00]} 15. a5 {[%clk 0:02:56]}  h5 {[%clk 0:02:59]} 16. Nf2 {[%clk 0:02:56]}  Rf7 {[%clk 0:02:56]} 17. Kh1 {[%clk 0:02:57]}  Kh8 {[%clk 0:02:01]} 18. g3 {[%clk 0:02:48]}  fxg3 {[%clk 0:01:47]} 19. hxg3 {[%clk 0:02:48]}  Bh6 {[%clk 0:01:47]} 20. Kg2 {[%clk 0:02:42]}  Qf8 {[%clk 0:01:41]} 21. Rh1 {[%clk 0:02:29]}  Qg7 {[%clk 0:01:33]} 22. c6 {[%clk 0:02:24]}  bxc6 {[%clk 0:01:30]} 23. dxc6 {[%clk 0:02:24]}  Be6 {[%clk 0:01:30]} 24. b5 {[%clk 0:02:14]}  Raf8 {[%clk 0:01:28]} 25. Ra3 {[%clk 0:02:00]}  g4 {[%clk 0:01:22]} 26. Bxh6 {[%clk 0:01:44]}  Qxh6 {[%clk 0:01:23]} 27. Nd5 {[%clk 0:01:39]}  Nxd5 {[%clk 0:01:13]} 28. exd5 {[%clk 0:01:37]}  Bc8 {[%clk 0:00:53]} 29. b6 {[%clk 0:01:10]}  axb6 {[%clk 0:00:54]} 30. axb6 {[%clk 0:01:10]}  cxb6 {[%clk 0:00:54]} 31. Ne4 {[%clk 0:01:01]}  Bf5 {[%clk 0:00:53]} 32. Nxd6 {[%clk 0:00:57]}  Nf4+ {[%clk 0:00:49]} 33. gxf4 {[%clk 0:00:52]}  Qxd6 {[%clk 0:00:50]} 34. Rxh5+ {[%clk 0:00:51]}  Rh7 {[%clk 0:00:44]} 35. Rxh7+ {[%clk 0:00:44]}  Bxh7 {[%clk 0:00:45]} 36. Ra7 {[%clk 0:00:41]}  gxf3+ {[%clk 0:00:41]} 37. Bxf3 {[%clk 0:00:42]}  Rg8+ {[%clk 0:00:40]} 38. Kf1 {[%clk 0:00:35]}  Qc5 {[%clk 0:00:40]} 39. Qd2 {[%clk 0:00:25]}  Rg1+ {[%clk 0:00:33]} 40. Ke2 {[%clk 0:00:24]}  Qc4+ {[%clk 0:00:34]} 41. Kf2 {[%clk 0:00:21]}  Qc5+ {[%clk 0:00:34]} 42. Ke2 {[%clk 0:00:18]}  Qc4+ {[%clk 0:00:35]} 43. Kf2 {[%clk 0:00:17]}  Qc5+ {[%clk 0:00:20]} 44. Ke2 {[%clk 0:00:07]} 1/2-1/2


[Site "https://www.chess.com"]

[Event "Titled Tuesday Blitz November 29 Early 2022"]
[White "Zhigalko, Sergei"]
[Black "Trost, Edvin"]
[WhiteFideId "13502956"]
[BlackFideId "1729519"]
[WhiteElo "2662"]
[BlackElo "2247"]
[Result "1/2-1/2"]
[Round "11"]
[TimeControl "180+1"]
[Date "2022.11.29"]
[WhiteClock "0:00:05"]
[BlackClock "0:00:08"]

1. e4 {[%clk 0:03:00]}  g6 {[%clk 0:02:56]} 2. d4 {[%clk 0:03:01]}  Bg7 {[%clk 0:02:57]} 3. Nc3 {[%clk 0:03:01]}  d6 {[%clk 0:02:56]} 4. Nf3 {[%clk 0:03:02]}  Bg4 {[%clk 0:02:54]} 5. Be3 {[%clk 0:03:02]}  Nc6 {[%clk 0:02:54]} 6. Bb5 {[%clk 0:03:01]}  a6 {[%clk 0:02:52]} 7. Bxc6+ {[%clk 0:03:01]}  bxc6 {[%clk 0:02:53]} 8. h3 {[%clk 0:03:01]}  Bxf3 {[%clk 0:02:53]} 9. Qxf3 {[%clk 0:03:02]}  e6 {[%clk 0:02:52]} 10. O-O {[%clk 0:03:00]}  Ne7 {[%clk 0:02:52]} 11. Rad1 {[%clk 0:02:58]}  O-O {[%clk 0:02:52]} 12. Rd3 {[%clk 0:02:39]}  Qd7 {[%clk 0:02:49]} 13. Rfd1 {[%clk 0:02:39]}  Rae8 {[%clk 0:02:48]} 14. Qe2 {[%clk 0:02:28]}  f5 {[%clk 0:02:47]} 15. Bg5 {[%clk 0:02:18]}  fxe4 {[%clk 0:02:43]} 16. Nxe4 {[%clk 0:02:17]}  Nd5 {[%clk 0:02:41]} 17. Rf3 {[%clk 0:02:02]}  Rf5 {[%clk 0:02:33]} 18. c4 {[%clk 0:01:59]}  Nb6 {[%clk 0:02:25]} 19. b3 {[%clk 0:01:44]}  Ref8 {[%clk 0:02:20]} 20. Rxf5 {[%clk 0:01:36]}  exf5 {[%clk 0:02:16]} 21. Nc3 {[%clk 0:01:31]}  h6 {[%clk 0:02:16]} 22. Bc1 {[%clk 0:01:23]}  Re8 {[%clk 0:02:14]} 23. Qf3 {[%clk 0:01:20]}  d5 {[%clk 0:02:12]} 24. c5 {[%clk 0:01:10]}  Nc8 {[%clk 0:02:11]} 25. h4 {[%clk 0:01:10]}  Na7 {[%clk 0:02:06]} 26. Qg3 {[%clk 0:01:07]}  Kh7 {[%clk 0:02:05]} 27. Bf4 {[%clk 0:01:02]}  Re7 {[%clk 0:01:54]} 28. a4 {[%clk 0:01:02]}  Nc8 {[%clk 0:01:47]} 29. b4 {[%clk 0:00:56]}  Na7 {[%clk 0:01:45]} 30. Kh2 {[%clk 0:00:52]}  Qd8 {[%clk 0:01:39]} 31. Rd3 {[%clk 0:00:46]}  Bf6 {[%clk 0:01:01]} 32. Be5 {[%clk 0:00:34]}  Bxe5 {[%clk 0:00:57]} 33. dxe5 {[%clk 0:00:35]}  Qe8 {[%clk 0:00:51]} 34. f4 {[%clk 0:00:35]}  Rg7 {[%clk 0:00:50]} 35. Ne2 {[%clk 0:00:32]}  Qb8 {[%clk 0:00:50]} 36. Rb3 {[%clk 0:00:27]}  Nc8 {[%clk 0:00:45]} 37. Nd4 {[%clk 0:00:26]}  Ne7 {[%clk 0:00:45]} 38. Qd3 {[%clk 0:00:15]}  Qc8 {[%clk 0:00:43]} 39. b5 {[%clk 0:00:12]}  axb5 {[%clk 0:00:43]} 40. axb5 {[%clk 0:00:13]}  cxb5 {[%clk 0:00:34]} 41. Qxb5 {[%clk 0:00:10]}  g5 {[%clk 0:00:26]} 42. hxg5 {[%clk 0:00:10]}  hxg5 {[%clk 0:00:27]} 43. Rh3+ {[%clk 0:00:10]}  Kg8 {[%clk 0:00:26]} 44. fxg5 {[%clk 0:00:11]}  Rxg5 {[%clk 0:00:24]} 45. c6 {[%clk 0:00:06]}  Qe8 {[%clk 0:00:09]} 46. Qb7 {[%clk 0:00:04]}  Qg6 {[%clk 0:00:08]} 47. Qb8+ {[%clk 0:00:03]}  Kf7 {[%clk 0:00:08]} 48. e6+ {[%clk 0:00:04]}  Kf6 {[%clk 0:00:06]} 49. Qh8+ {[%clk 0:00:04]}  Qg7 {[%clk 0:00:07]} 50. Rh6+ {[%clk 0:00:03]}  Ke5 {[%clk 0:00:07]} 51. Nf3+ {[%clk 0:00:04]}  Kd6 {[%clk 0:00:06]} 52. Nxg5 {[%clk 0:00:04]}  Qxg5 {[%clk 0:00:06]} 53. Rh4 {[%clk 0:00:04]}  f4 {[%clk 0:00:05]} 54. Qh6 {[%clk 0:00:03]}  Qg3+ {[%clk 0:00:05]} 55. Kh1 {[%clk 0:00:03]}  Qe1+ {[%clk 0:00:05]} 56. Kh2 {[%clk 0:00:04]}  Qg3+ {[%clk 0:00:06]} 57. Kh1 {[%clk 0:00:04]}  Qe1+ {[%clk 0:00:07]} 58. Kh2 {[%clk 0:00:05]}  Qg3+ {[%clk 0:00:08]} 1/2-1/2


[Site "https://www.chess.com"]